bitfinex/quotes_SOLUSD_20251025
["timestamp","ask_amount","ask_price","bid_price","bid_amount"]
[1761367696482,5.35597873,193.95,193.91,2.5552373]
[1761367696691,0.2,193.95,193.9,8.38245511]
[1761367696890,0.2,193.95,193.91,0.67]
[1761367698000,5.35598608,193.95,193.91,0.67]
[1761367703808,6.16640536,193.94,193.88,3.2452373]
[1761367704012,8.72164266,193.94,193.89,0.69]
[1761367705512,0.48,193.93,193.89,0.69]
[1761367705693,0.53005381,193.92,193.89,0.69]
[1761367706612,5.15663016,193.93,193.89,0.69]
[1761367706991,5.68668397,193.93,193.89,0.69]
[1761367710417,5.15663016,193.93,193.89,0.69]
[1761367710611,0.53005381,193.92,193.89,0.69]
[1761367710812,5.15663016,193.93,193.89,0.69]
[1761367712814,5.15663016,193.93,193.89,3.2452373]
[1761367712999,5.68632874,193.94,193.9,0.69]
[1761367713405,5.68632874,193.94,193.9,3.2452373]
[1761367713597,0.2,193.95,193.92,2.5552373]
[1761367713999,0.2,193.95,193.93,0.69]
[1761367714506,0.2,193.95,193.93,3.2452373]
[1761367714820,0.2,193.95,193.93,0.69]
[1761367715007,0.2,193.95,193.94,0.69]
[1761367738755,5.83608658,193.95,193.9,0.71]
[1761367738926,2.5552373,193.94,193.9,0.71]
[1761367739522,8.44137769,193.95,193.9,5.86728818]
[1761367739922,5.88614039,193.95,193.91,0.71]
[1761367741841,8.92137769,193.95,193.91,0.71]
[1761367742044,8.44137769,193.95,193.91,0.71]
[1761367743570,2.5552373,193.92,193.88,0.71]
[1761367743871,3.08529111,193.91,193.87,0.71]
[1761367744836,3.08529111,193.91,193.87,5.86808117]
[1761367745341,3.08529111,193.91,193.88,0.71]
[1761367747043,3.0352373,193.9,193.84,49.76171251]
[1761367747243,3.08529111,193.89,193.85,0.71]
[1761367747446,3.56529111,193.89,193.85,0.71]
[1761367748862,3.08529111,193.89,193.84,35.62]
[1761367749055,2.5552373,193.87,193.84,36.33]
[1761367749566,3.0352373,193.88,193.84,0.71]
[1761367749938,0.48,193.88,193.84,0.71]
[1761367750849,13.9308253,193.89,193.84,5.86888896]
[1761367751059,8.2430313,193.89,193.84,8.42412626]
[1761367751236,8.2430313,193.89,193.85,0.71]
[1761367752858,7.32371415,193.89,193.85,0.71]
[1761367754162,1.63592015,193.88,193.85,0.71]
[1761367754380,2.11592015,193.88,193.84,0.71]
[1761367755058,1.63592015,193.87,193.84,0.71]
[1761367755450,2.16597396,193.87,193.84,0.71]
[1761367755646,1.63592015,193.85,193.82,0.71]
[1761367755847,2.16597396,193.85,193.81,0.71]
[1761367756263,2.64597396,193.85,193.81,0.71]
[1761367756866,2.11592015,193.85,193.81,0.71]
[1761367758445,7.27458078,193.85,193.81,0.71]
[1761367758955,1.63592015,193.83,193.8,36.33]
[1761367759150,2.16597396,193.84,193.8,36.33]
[1761367759673,2.16597396,193.84,193.81,0.69]
[1761367760165,11.40652902,193.85,193.81,0.69]
[1761367761366,16.56520262,193.85,193.81,0.69]
[1761367766174,5.68872741,193.85,193.81,0.69]
[1761367766350,10.8488648,193.85,193.81,0.69]
[1761367769348,23.41005381,193.87,193.82,1.63592015]
[1761367769570,5.15839857,193.86,193.81,2.32592015]
[1761367769857,0.53005381,193.85,193.81,0.69]
[1761367770068,0.53005381,193.85,193.82,0.69]
[1761367770573,5.68870195,193.85,193.82,0.69]
[1761367779795,5.15864814,193.85,193.82,0.69]
[1761367785087,7.32439427,193.86,193.82,0.69]
[1761367785786,28.56819621,193.87,193.82,7.4852365]
[1761367786381,28.56819621,193.87,193.83,0.69]
[1761367796408,0.53005381,193.87,193.85,1.63592015]
[1761367796602,5.15676567,193.92,193.85,1.63592015]
[1761367796801,0.53005381,193.91,193.87,1.63592015]
[1761367797097,0.53005381,193.91,193.86,2.29592015]
[1761367797496,0.53005381,193.91,193.87,0.66]
[1761367798476,5.68721447,193.91,193.87,0.66]
[1761367801105,6.16721447,193.91,193.87,0.66]
[1761367801398,7.80313462,193.91,193.87,0.66]
[1761367801606,7.32313462,193.91,193.87,0.66]
[1761367802183,7.32313462,193.91,193.85,1.63592015]
[1761367802184,2.11592015,193.9,193.85,0.72]
[1761367802391,0.53005381,193.89,193.86,0.72]
[1761367803203,5.68770074,193.89,193.86,0.72]
[1761367805905,7.32362089,193.89,193.86,0.72]
[1761367810210,5.68770074,193.89,193.86,0.72]
[1761367814914,0.53005381,193.89,193.86,0.72]
[1761367820205,5.68736129,193.9,193.86,0.72]
[1761367820725,2.5559717,193.89,193.86,0.72]
[1761367820910,0.53005381,193.88,193.85,0.67]
[1761367821116,2.5559717,193.87,193.83,13.56256802]
[1761367821423,0.53005381,193.86,193.83,0.67]
[1761367821626,0.53005381,193.86,193.84,0.67]
[1761367823713,0.53005381,193.86,193.83,0.67]
[1761367824126,0.53005381,193.87,193.83,0.67]
[1761367828324,1.01005381,193.87,193.83,0.67]
[1761367828629,0.53005381,193.87,193.83,0.67]
[1761367828821,0.53005381,193.87,193.83,5.82915948]
[1761367829024,0.53005381,193.87,193.84,0.67]
[1761367834511,0.53005381,193.89,193.84,8.38478353]
[1761367834916,1.01005381,193.89,193.85,0.67]
[1761367835229,0.53005381,193.89,193.85,3.2259717]
[1761367835434,0.53005381,193.9,193.87,2.5559717]
[1761367835724,0.53005381,193.9,193.88,0.67]
[1761367836226,0.53005381,193.9,193.86,7.7143334]
[1761367836527,0.53005381,193.9,193.87,0.67]
[1761367840031,0.53005381,193.9,193.87,5.82806718]
[1761367840326,0.53005381,193.9,193.88,0.67]
[1761367842644,0.53005381,193.9,193.87,5.15806718]
[1761367842929,0.53005381,193.9,193.87,5.82806718]
[1761367843439,0.53005381,193.9,193.88,0.67]
[1761367844714,0.53005381,193.9,193.87,0.67]
[1761367844914,0.53005381,193.9,193.88,0.67]
[1761367845832,0.53005381,193.9,193.86,5.1583617]
[1761367846035,0.53005381,193.9,193.87,0.67]
[1761367848737,102.73005381,193.91,193.87,5.82790991]
[1761367849133,102.73005381,193.91,193.88,0.67]
[1761367850739,0.53005381,193.91,193.88,0.67]
[1761367862853,6.16709559,193.91,193.86,13.58265527]
[1761367863054,6.16709559,193.91,193.87,0.71]
[1761367863549,5.68709559,193.91,193.87,0.71]
[1761367866655,5.68709559,193.91,193.87,5.8680523]
[1761367867027,5.68709559,193.91,193.88,0.71]
[1761367872962,8.24306729,193.91,193.88,0.71]
[1761367874763,7.32271169,193.91,193.88,0.71]
[1761367876755,5.68709559,193.91,193.88,0.71]
[1761367884848,7.32271169,193.91,193.88,0.71]
[1761367888669,5.68709559,193.91,193.88,0.71]
[1761367897199,1.6356161,193.9,193.87,0.7]
[1761367897365,0.53005381,193.89,193.87,0.7]
[1761367898162,5.68768021,193.89,193.87,0.7]
[1761367899688,5.68768021,193.89,193.85,15.49146678]
[1761367899986,7.32329631,193.89,193.86,0.7]
[1761367901282,1.6356161,193.87,193.84,0.7]
[1761367901584,2.16566991,193.86,193.84,0.7]
[1761367902380,0.53005381,193.86,193.84,0.7]
[1761367907994,2.16566991,193.86,193.84,0.7]
[1761367912588,7.32411927,193.86,193.83,5.68768021]
[1761367912796,7.32411927,193.86,193.83,6.35768021]
[1761367912987,4.24768021,193.89,193.85,12.51209131]
[1761367913189,0.92,193.96,193.89,10.87647521]
[1761367913382,0.92,193.96,193.92,1.6356161]
[1761367913584,0.92,193.96,193.93,3.84787304]
[1761367913783,0.92,193.95,193.94,3.84787304]
[1761367914175,0.92,193.95,193.94,5.91276218]
[1761367919207,0.2,193.95,193.94,5.91276218]
[1761367919501,0.2,193.95,193.94,7.54837828]
[1761367923810,0.2,193.95,193.94,5.91276218]
[1761367929117,0.89,193.95,193.94,2.06488914]
[1761367930304,0.2,193.95,193.94,2.06488914]
[1761367931515,0.2,193.95,193.94,3.70050524]
[1761367933314,1.8356161,194.0,193.99,33.75647521]
[1761367933315,0.2,194.0,193.99,33.75647521]
[1761367933497,0.2,194.0,193.99,80.65308017]
[1761367933693,1e-08,194.0,193.99,82.28869627]
[1761367933901,0.2,194.04,194.0,10.87647521]
[1761367934098,0.2,194.04,194.01,16.85812214]
[1761367934790,0.2,194.04,194.01,17.77231477]
[1761367934996,0.2,194.04,194.01,19.83549981]
[1761367936131,0.2,194.04,194.01,24.98987329]
[1761367940321,0.2,194.04,194.02,10.87647521]
[1761367940526,0.2,194.04,194.02,17.25687743]
[1761367941308,1e-08,194.05,194.02,17.25687743]
[1761367941625,1e-08,194.11,194.1,10.87647521]
[1761367941825,0.72,194.21,194.14,10.87647521]
[1761367942133,0.72,194.21,194.19,10.87647521]
[1761367942315,0.72,194.21,194.19,51.86597225]
[1761367942701,0.72,194.21,194.2,2.54980873]
[1761367944203,0.72,194.21,194.18,2.54980873]
[1761367944419,0.72,194.21,194.18,38.38980873]
[1761367944923,0.72,194.21,194.18,35.84]
[1761367945912,0.72,194.21,194.19,2.54980873]
[1761367949142,0.72,194.21,194.18,38.38980873]
[1761367949857,0.72,194.21,194.18,2.54980873]
[1761367950030,0.72,194.21,194.16,38.36980873]
[1761367950229,15.46591055,194.33,194.21,10.87647521]
[1761367950422,0.72,194.27,194.2,2.54980873]
[1761367951269,5.14774014,194.26,194.2,2.54980873]
[1761367951845,0.72,194.25,194.2,2.54980873]
[1761367952552,0.72,194.25,194.2,7.69909117]
[1761367953546,0.72,194.25,194.2,5.14928244]
[1761367954346,5.86806746,194.25,194.2,5.14928244]
[1761367954553,5.86806746,194.25,194.19,35.88]
[1761367954848,0.72,194.24,194.19,35.88]
[1761367955450,0.72,194.24,194.19,41.02954599]
[1761367955656,0.72,194.24,194.19,43.57935472]
[1761367957240,0.72,194.24,194.19,5.14954599]
[1761367957837,0.72,194.35,194.22,36.30628394]
[1761367958132,0.72,194.34,194.3,2.54980873]
[1761367959158,0.72,194.34,194.3,5.14667403]
[1761367959733,2.54980873,194.42,194.33,10.87647521]
[1761367960028,25.42980873,194.38,194.32,10.87647521]
[1761367960240,0.72,194.37,194.32,10.87647521]
[1761367960654,0.72,194.37,194.32,13.42628394]
[1761367961242,0.72,194.37,194.32,10.87647521]
[1761367961439,0.72,194.37,194.32,16.02249653]
[1761367962855,22.88,194.38,194.35,2.54980873]
[1761367963048,0.72,194.4,194.35,2.54980873]
[1761367963236,0.72,194.4,194.35,7.69502245]
[1761367963645,0.72,194.4,194.36,10.87647521]
[1761367966344,0.72,194.4,194.35,2.54980873]
[1761367966550,0.72,194.4,194.36,10.87647521]
[1761367967660,0.72,194.5,194.4,10.87647521]
[1761367967866,0.72,194.53,194.48,2.54980873]
[1761367968160,11.63246157,194.6,194.5,2.54980873]
[1761367968353,11.63246157,194.6,194.47,10.87647521]
[1761367968354,0.72,194.56,194.52,2.54980873]
[1761367968754,23.6,194.56,194.52,2.54980873]
[1761367969260,0.72,194.55,194.47,5.14218131]
[1761367969564,0.72,194.55,194.48,13.42628394]
[1761367969760,0.72,194.55,194.5,2.54980873]
[1761367970059,36.06,194.54,194.5,2.54980873]
[1761367970244,36.06,194.53,194.5,2.54980873]
[1761367970654,36.77,194.53,194.5,2.54980873]
[1761367970855,0.71,194.52,194.5,2.54980873]
[1761367971063,36.77,194.53,194.5,2.54980873]
[1761367971755,36.06,194.53,194.5,2.54980873]
[1761367971957,0.71,194.52,194.5,2.54980873]
[1761367972849,0.71,194.52,194.45,16.01918541]
[1761367973049,36.04,194.51,194.45,18.56899414]
[1761367973249,36.04,194.51,194.46,2.54980873]
[1761367973463,36.75,194.51,194.46,2.54980873]
[1761367973650,0.71,194.5,194.46,2.54980873]
[1761367973856,0.71,194.5,194.45,16.01918541]
[1761367974051,0.71,194.5,194.46,2.54980873]
[1761367974257,0.71,194.5,194.45,13.42628394]
[1761367975353,0.71,194.5,194.45,18.56894219]
[1761367976871,0.71,194.5,194.45,16.01913346]
[1761367977256,36.04,194.49,194.45,16.01913346]
[1761367977654,0.71,194.55,194.49,10.87647521]
[1761367977869,0.71,194.54,194.51,10.87647521]
[1761367978174,0.72,194.58,194.54,10.87647521]
[1761367978674,0.72,194.58,194.54,2.54980873]
[1761367978872,0.72,194.58,194.53,10.87647521]
[1761367979075,0.72,194.58,194.54,2.54980873]
[1761367979258,36.86,194.58,194.55,10.87647521]
[1761367979767,36.86,194.58,194.54,13.42628394]
[1761367979768,0.72,194.57,194.54,13.42628394]
[1761367980658,5.85955341,194.57,194.49,23.39416525]
[1761367980851,5.85955341,194.57,194.52,2.54980873]
[1761367981058,5.85955341,194.57,194.52,10.87647521]
[1761367981059,0.72,194.56,194.52,10.87647521]
[1761367981490,0.72,194.56,194.53,2.54980873]
[1761367981881,36.84,194.56,194.53,2.54980873]
[1761367982574,0.72,194.55,194.53,2.54980873]
[1761367983074,0.72,194.55,194.52,13.42628394]
[1761367983462,36.1,194.56,194.52,13.42628394]
[1761367983654,36.82,194.56,194.52,13.42628394]
[1761367984051,0.72,194.55,194.52,13.42628394]
[1761367984578,0.72,194.55,194.5,18.56764399]
[1761367985182,0.72,194.55,194.5,10.87647521]
[1761367985675,0.72,194.55,194.5,13.42628394]
[1761367986056,5.86016298,194.55,194.48,5.14175326]
[1761367986252,5.86016298,194.55,194.5,2.54980873]
[1761367986471,0.72,194.54,194.5,2.54980873]
[1761367988589,36.08,194.53,194.5,2.54980873]
[1761367988892,36.08,194.53,194.49,16.01800425]
[1761367989062,36.8,194.53,194.5,10.87647521]
[1761367989766,0.72,194.52,194.5,10.87647521]
[1761367990094,0.72,194.52,194.49,10.87647521]
[1761367990587,36.78,194.52,194.49,10.87647521]
[1761367990756,36.78,194.52,194.49,2.54980873]
[1761367990964,36.78,194.52,194.5,10.87647521]
[1761367991890,36.06,194.52,194.49,13.42628394]
[1761367992188,0.72,194.51,194.5,10.87647521]
[1761367993614,0.72,194.53,194.49,2.54980873]
[1761367993773,36.06,194.55,194.51,2.54980873]
[1761367994086,36.76,194.54,194.52,10.87647521]
[1761367994289,36.8,194.54,194.52,10.87647521]
[1761367994584,0.72,194.53,194.52,10.87647521]
[1761367994879,0.72,194.53,194.49,10.87647521]
[1761367995067,36.8,194.53,194.49,10.87647521]
[1761367996063,36.08,194.53,194.49,16.01811726]
[1761367996272,0.72,194.52,194.49,16.01811726]
[1761367996590,0.72,194.52,194.49,10.87647521]
[1761367997190,0.72,194.52,194.49,16.01808297]
[1761367997588,36.08,194.55,194.52,10.87647521]
[1761367997979,36.8,194.55,194.52,10.87647521]
[1761367998285,36.8,194.55,194.5,1.62490746]
[1761367998796,0.72,194.54,194.49,17.64299043]
[1761367999295,0.72,194.54,194.5,3.76934848]
[1761367999480,0.72,194.54,194.49,17.64299043]
[1761367999683,0.72,194.54,194.5,3.76935811]
[1761367999891,0.72,194.54,194.49,17.64299043]
[1761368000091,0.72,194.54,194.5,3.76935734]
[1761368000318,0.72,194.54,194.49,17.64299043]
[1761368000611,0.72,194.54,194.5,3.77366563]
[1761368000813,0.72,194.54,194.49,17.64299043]
[1761368000993,0.72,194.54,194.5,3.77366701]
[1761368001190,0.72,194.54,194.52,10.87647521]
[1761368001397,0.72,194.54,194.5,5.14130291]
[1761368001595,0.72,194.54,194.52,10.87647521]
[1761368003306,36.78,194.54,194.53,3.78641329]
[1761368008919,43.54523849,194.54,194.53,3.78641329]
[1761368009120,41.92033103,194.54,194.48,10.87647521]
[1761368009309,2.31490746,194.53,194.49,3.80146045]
[1761368009624,2.31490746,194.53,194.47,10.87647521]
[1761368009804,0.69,194.52,194.47,10.87647521]
[1761368010004,36.02,194.51,194.47,10.87647521]
[1761368010507,0.69,194.5,194.47,10.87647521]
[1761368010713,0.69,194.5,194.46,10.87647521]
[1761368011222,0.69,194.5,194.46,16.01868456]
[1761368011409,0.69,194.5,194.46,10.87647521]
[1761368011726,0.69,194.5,194.45,1.62490746]
[1761368011903,36.02,194.49,194.45,1.62490746]
[1761368012101,36.02,194.48,194.46,10.87647521]
[1761368012312,36.02,194.48,194.46,16.01871151]
[1761368012605,36.71,194.48,194.46,16.01871151]
[1761368013731,36.71,194.48,194.46,5.1422363]
[1761368014036,36.71,194.48,194.46,16.01871151]
[1761368014225,5.14115996,194.51,194.46,16.01871151]
[1761368014430,0.69,194.47,194.46,16.01871151]
[1761368014620,36.69,194.47,194.46,16.01871151]
[1761368014819,5.14081331,194.53,194.47,10.87647521]
[1761368015126,0.69,194.49,194.47,10.87647521]
[1761368015322,0.69,194.49,194.46,6.7673532]
[1761368015323,36.0,194.48,194.46,5.14244574]
[1761368015634,36.0,194.48,194.47,12.50138267]
[1761368015805,36.0,194.48,194.47,17.64356398]
[1761368016607,36.0,194.48,194.47,16.01865652]
[1761368017823,36.0,194.48,194.46,5.14242307]
[1761368018133,0.69,194.47,194.46,16.01889828]
[1761368019830,0.69,194.47,194.46,10.87647521]
[1761368020013,36.69,194.47,194.46,10.87647521]
[1761368020629,36.69,194.47,194.46,16.01892095]
[1761368020819,36.69,194.47,194.46,5.14244574]
[1761368021018,36.69,194.47,194.45,6.76739046]
[1761368021227,36.69,194.47,194.45,5.142483]
[1761368022638,36.69,194.47,194.45,1.62490746]
[1761368023519,36.69,194.47,194.45,10.87647521]
[1761368024022,36.69,194.47,194.44,16.0194499]
[1761368024231,36.69,194.47,194.44,17.64435736]
[1761368025434,36.65,194.47,194.44,17.64435736]
[1761368026130,35.96,194.47,194.44,17.64435736]
[1761368026439,0.69,194.46,194.44,17.64435736]
[1761368028248,0.69,194.46,194.44,16.0194499]
[1761368030041,0.69,194.46,194.44,17.64435736]
[1761368030654,36.66,194.47,194.44,30.5017941]
[1761368032121,0.7,194.46,194.44,5.14297469]
[1761368037741,0.7,194.46,194.43,5.14320744]
[1761368037917,0.7,194.46,194.43,6.7681149]
[1761368039641,0.7,194.46,194.43,5.14320744]
[1761368044219,22.88,194.52,194.45,1.62490746]
[1761368044424,0.65,194.5,194.47,1.62490746]
[1761368045041,22.88,194.55,194.49,1.62490746]
[1761368045242,0.65,194.52,194.49,1.62490746]
[1761368045638,0.65,194.52,194.46,10.87647521]
[1761368045639,0.65,194.52,194.5,1.62490746]
[1761368045942,0.65,194.55,194.53,5.14059528]
[1761368046142,0.65,194.57,194.54,1.62490746]
[1761368046825,0.65,194.57,194.54,10.87647521]
[1761368047030,0.65,194.57,194.54,12.50138267]
[1761368047647,0.65,194.57,194.54,17.64168186]
[1761368048150,0.65,194.57,194.54,16.0167744]
[1761368050349,0.65,194.57,194.54,17.64168186]
[1761368053057,0.65,194.57,194.54,10.87647521]
[1761368053233,2.27490746,194.57,194.49,10.87647521]
[1761368053553,1.62490746,194.56,194.51,10.87647521]
[1761368053749,35.88,194.55,194.5,10.87647521]
[1761368053955,36.53,194.55,194.5,10.87647521]
[1761368054141,0.65,194.54,194.5,10.87647521]
[1761368055151,0.65,194.54,194.51,5.14112384]
[1761368055955,0.65,194.54,194.51,6.7660313]
[1761368056360,0.65,194.54,194.51,5.14112384]
[1761368057641,0.65,194.54,194.48,2.53849812]
[1761368057835,3.18849812,194.54,194.48,10.87647521]
[1761368058155,0.65,194.54,194.49,2.53849812]
[1761368058360,0.65,194.53,194.49,2.53849812]
[1761368059258,0.65,194.53,194.48,10.87647521]
[1761368059259,0.65,194.53,194.48,5.14187028]
[1761368060451,3.18849812,194.53,194.48,5.14187028]
[1761368060649,0.68,194.52,194.48,5.14187028]
[1761368060960,0.68,194.52,194.5,2.53849812]
[1761368061141,0.68,194.52,194.49,13.41497333]
[1761368061848,0.68,194.52,194.5,5.14138817]
[1761368062037,16.11964385,194.58,194.51,13.41497333]
[1761368062244,0.68,194.58,194.54,2.53849812]
[1761368062442,0.68,194.57,194.53,2.53849812]
[1761368062850,11.73246157,194.6,194.56,13.41497333]
[1761368063156,11.73246157,194.6,194.51,10.87647521]
[1761368063157,0.68,194.59,194.53,10.87647521]
[1761368063364,0.68,194.59,194.55,10.87647521]
[1761368064154,11.73246157,194.6,194.57,2.53849812]
[1761368064356,11.73246157,194.6,194.56,2.53849812]
[1761368064357,0.68,194.59,194.56,2.53849812]
[1761368065063,0.68,194.59,194.55,18.55484651]
[1761368065639,11.73246157,194.6,194.57,2.53849812]
[1761368066558,11.73246157,194.6,194.59,13.41497333]
[1761368067152,11.73246157,194.6,194.59,10.87647521]
[1761368067370,11.73246157,194.6,194.59,13.41497333]
[1761368067563,11.73246157,194.6,194.57,2.53849812]
[1761368067766,11.73246157,194.6,194.59,2.53849812]
[1761368067958,11.73246157,194.6,194.58,13.41497333]
[1761368068671,11.73246157,194.6,194.59,2.53849812]
[1761368069768,11.73246157,194.6,194.59,7.67750834]
[1761368071585,12.41246157,194.6,194.57,10.87647521]
[1761368071782,0.68,194.59,194.57,10.87647521]
[1761368072090,12.41246157,194.6,194.58,10.87647521]
[1761368072597,12.41246157,194.6,194.57,7.67803437]
[1761368073273,0.68,194.59,194.57,2.53849812]
[1761368073475,0.68,194.59,194.55,18.55503505]
[1761368073966,0.68,194.59,194.55,2.53849812]
[1761368074177,0.68,194.59,194.54,10.87647521]
[1761368075300,0.68,194.59,194.54,16.01656434]
[1761368075789,5.81903306,194.59,194.54,16.01656434]
[1761368076194,0.68,194.58,194.54,16.01656434]
[1761368076574,0.68,194.58,194.54,10.87647521]
[1761368077997,0.68,194.58,194.55,2.53849812]
[1761368078398,0.68,194.58,194.54,10.87647521]
[1761368078696,0.68,194.58,194.54,13.41497333]
[1761368078891,0.68,194.58,194.54,18.55528503]
[1761368081571,0.68,194.58,194.44,6.21901377]
[1761368081572,2.53849812,194.55,194.48,10.87647521]
[1761368081797,2.53849812,194.54,194.48,10.87647521]
[1761368082096,3.21849812,194.54,194.48,10.87647521]
[1761368082397,0.68,194.53,194.48,10.87647521]
[1761368082600,5.82075733,194.53,194.46,5.14239178]
[1761368082898,5.82075733,194.53,194.47,10.87647521]
[1761368083102,0.68,194.52,194.48,2.53849812]
[1761368083296,0.68,194.52,194.47,13.41497333]
[1761368083899,0.68,194.52,194.47,10.87647521]
[1761368084201,5.82096147,194.52,194.47,10.87647521]
[1761368084696,0.68,194.51,194.47,10.87647521]
[1761368084907,0.68,194.51,194.47,16.01860285]
[1761368088102,0.68,194.51,194.47,18.55710097]
[1761368094601,0.68,194.51,194.49,10.87647521]
[1761368100814,0.68,194.51,194.48,10.87647521]
[1761368102021,8.35969794,194.51,194.43,7.68173733]
[1761368102619,0.72,194.5,194.43,7.68173733]
[1761368103422,8.40006679,194.5,194.43,7.68173733]
[1761368103640,8.40006679,194.5,194.43,5.14323921]
[1761368103805,0.72,194.49,194.43,5.14323921]
[1761368104707,5.86165364,194.49,194.43,5.14323921]
[1761368105108,0.72,194.48,194.43,5.14323921]
[1761368105829,0.72,194.48,194.43,7.68173733]
[1761368115345,0.72,194.48,194.45,5.1427102]
[1761368117427,0.72,194.48,194.44,16.01944]
[1761368120727,0.72,194.48,194.44,5.14296479]
[1761368121737,7.48786812,194.48,194.42,5.14326853]
[1761368122156,0.71,194.47,194.4,12.50230448]
[1761368122341,5.14244574,194.46,194.41,5.14360793]
[1761368122855,0.71,194.45,194.37,35.86]
[1761368123045,0.71,194.45,194.35,17.14803001]
[1761368123046,2.33582927,194.45,194.38,12.50230448]
[1761368123239,0.71,194.45,194.42,1.62582927]
[1761368123440,5.85221645,194.47,194.43,1.62582927]
[1761368123656,0.71,194.46,194.43,1.62582927]
[1761368124158,0.71,194.46,194.42,1.62582927]
[1761368124340,0.71,194.46,194.42,10.87647521]
[1761368125030,5.85248913,194.46,194.42,10.87647521]
[1761368125442,0.71,194.45,194.42,10.87647521]
[1761368126238,0.71,194.45,194.42,16.01991924]
[1761368129462,0.71,194.45,194.42,10.87647521]
[1761368129659,0.71,194.45,194.41,5.14370636]
[1761368129838,0.71,194.45,194.4,16.02050813]
[1761368130045,0.71,194.45,194.4,17.6463374]
[1761368131664,0.71,194.45,194.4,16.02050813]
[1761368133665,0.71,194.45,194.4,17.6463374]
[1761368143372,0.71,194.45,194.4,16.02050813]
[1761368143568,0.71,194.45,194.41,1.62582927]
[1761368143772,35.73466241,194.49,194.44,1.62582927]
[1761368143773,0.71,194.49,194.44,1.62582927]
[1761368143956,0.71,194.49,194.46,1.62582927]
[1761368144159,0.71,194.49,194.45,1.62582927]
[1761368144777,0.71,194.49,194.44,10.87647521]
[1761368145059,0.71,194.49,194.44,12.50230448]
[1761368146082,0.71,194.49,194.45,5.1427102]
[1761368146384,5.13990985,194.56,194.46,12.50230448]
[1761368146575,5.13990985,194.56,194.45,17.99948572]
[1761368146576,37.44582927,194.55,194.48,1.62582927]
[1761368146771,38.15582927,194.55,194.48,1.62582927]
[1761368146972,2.33582927,194.54,194.47,1.62582927]
[1761368147462,0.71,194.53,194.47,1.62582927]
[1761368147958,0.71,194.53,194.48,5.1419169]
[1761368147959,5.85060593,194.53,194.48,5.1419169]
[1761368148355,0.71,194.52,194.48,5.1419169]
[1761368150693,0.71,194.52,194.5,1.62582927]
[1761368151358,0.7,194.54,194.5,1.62582927]
[1761368151564,0.7,194.54,194.51,1.62582927]
[1761368152171,0.7,194.54,194.5,1.62582927]
[1761368152874,0.7,194.54,194.51,5.14112384]
[1761368157576,0.7,194.56,194.52,1.62582927]
[1761368158993,0.7,194.56,194.53,5.14059528]
[1761368160803,0.7,194.58,194.54,1.62582927]
[1761368160998,0.7,194.58,194.55,1.62582927]
[1761368161178,0.7,194.58,194.54,12.50230448]
[1761368161378,0.7,194.58,194.54,10.87647521]
[1761368161676,0.7,194.58,194.54,12.50230448]
[1761368161875,0.7,194.58,194.54,10.87647521]
[1761368163501,0.7,194.58,194.55,5.14006682]
[1761368164592,12.43246157,194.6,194.57,1.62582927]
[1761368165483,12.43246157,194.6,194.57,6.76523129]
[1761368166605,0.7,194.59,194.57,6.76523129]
[1761368167602,0.7,194.59,194.57,5.13940202]
[1761368167801,11.73246157,194.6,194.57,6.76523129]
[1761368168004,0.7,194.59,194.57,6.76523129]
[1761368169403,0.7,194.59,194.57,5.13940202]
[1761368172381,0.7,194.59,194.53,35.76]
[1761368172699,0.7,194.59,194.54,10.87647521]
[1761368172880,5.83902282,194.59,194.53,6.76642455]
[1761368173287,0.7,194.58,194.53,6.76642455]
[1761368174601,0.7,194.58,194.54,1.62582927]
[1761368174786,0.7,194.58,194.55,1.62582927]
[1761368175179,0.7,194.58,194.56,1.62582927]